bitfinex/quotes_SOLUSD_20241105
["timestamp","ask_amount","ask_price","bid_price","bid_amount"]
[1730826979500,16.78655402,168.97,168.95,0.3102332]
[1730826979800,23.776884,168.99,168.95,17.09678722]
[1730826979996,23.776884,168.99,168.95,23.01558722]
[1730826980177,20.0,169.0,168.96,16.78655402]
[1730826980501,36.78655402,169.0,168.95,23.01558722]
[1730826980703,23.776884,168.99,168.95,6.2290332]
[1730826981078,23.776884,168.99,168.95,0.3102332]
[1730826981291,40.56343802,168.99,168.95,0.3102332]
[1730826981606,23.776884,168.99,168.95,0.3102332]
[1730826981907,40.56343802,168.99,168.95,0.3102332]
[1730826982500,46.48103802,168.99,168.95,0.3102332]
[1730826982692,40.56343802,168.99,168.95,0.3102332]
[1730826984102,38.30065402,169.04,168.95,0.3102332]
[1730826984103,16.78655402,169.02,168.97,16.78655402]
[1730826984487,92.70265402,169.03,168.98,16.78655402]
[1730826984816,75.9161,169.03,168.98,16.78655402]
[1730826986100,23.776884,169.02,168.98,16.78655402]
[1730826986618,46.47993802,169.02,168.97,22.70455402]
[1730826986980,46.47993802,169.02,168.96,16.78655402]
[1730826989103,46.47993802,169.02,168.97,16.78655402]
[1730826989399,29.693384,169.02,168.97,16.78655402]
[1730826989984,23.776884,169.0,168.95,37.81258722]
[1730826990206,29.694084,169.0,168.95,31.89398722]
[1730826991209,29.694084,169.0,168.95,37.81288722]
[1730826991417,60.56343802,168.96,168.95,0.3102332]
[1730826992982,40.56343802,168.96,168.95,0.3102332]
[1730826993176,23.776884,168.96,168.95,0.3102332]
[1730826993405,130.56343802,168.96,168.95,0.3102332]
[1730826994383,110.56343802,168.96,168.95,0.3102332]
[1730826994587,130.56343802,168.96,168.95,0.3102332]
[1730826998524,153.46849204,168.96,168.95,0.3102332]
[1730826999197,23.776884,168.9,168.87,0.3102332]
[1730826999795,86.78655402,168.93,168.87,17.09678722]
[1730827000018,70.0,168.93,168.88,16.78655402]
[1730827000216,86.78655402,168.93,168.88,16.78655402]
[1730827000411,16.78655402,168.92,168.87,17.09678722]
[1730827000799,92.70645402,168.93,168.87,17.09678722]
[1730827001317,16.78655402,168.91,168.87,0.3102332]
[1730827001521,23.776884,168.9,168.87,0.3102332]
[1730827001709,40.56343802,168.9,168.87,0.3102332]
[1730827002399,6.0199,168.93,168.87,0.3102332]
[1730827002400,40.56343802,168.88,168.87,0.3102332]
[1730827002794,23.776884,168.88,168.87,0.3102332]
[1730827003127,60.56343802,168.88,168.87,0.3102332]
[1730827004301,43.776884,168.88,168.87,0.3102332]
[1730827004819,23.776884,168.88,168.87,0.3102332]
[1730827005321,20.0,168.9,168.87,0.3102332]
[1730827005822,16.78655402,168.89,168.87,0.3102332]
[1730827006121,16.78655402,168.88,168.87,0.3102332]
[1730827006623,46.48473802,168.88,168.87,0.3102332]
[1730827007319,29.698184,168.88,168.87,0.3102332]
[1730827007820,23.776884,168.88,168.87,0.3102332]
[1730827008023,23.776884,168.88,168.87,17.09678722]
[1730827008226,22.70575402,168.94,168.87,17.09678722]
[1730827008528,5.9192,168.94,168.9,16.78655402]
[1730827008819,5.9192,168.94,168.89,16.78655402]
[1730827009197,22.70575402,168.94,168.89,16.78655402]
[1730827009399,23.776884,168.93,168.89,16.78655402]
[1730827009714,5.919,168.95,168.92,16.78655402]
[1730827009899,5.919,168.95,168.9,16.78655402]
[1730827010095,22.70555402,168.95,168.9,16.78655402]
[1730827010593,22.70555402,168.95,168.89,31.58905402]
[1730827010800,23.776884,168.93,168.9,16.78655402]
[1730827011206,29.696184,168.94,168.9,16.78655402]
[1730827011407,29.696184,168.94,168.91,16.78655402]
[1730827012618,29.696184,168.94,168.92,16.78655402]
[1730827012619,23.776884,168.94,168.92,16.78655402]
[1730827013527,23.776884,168.95,168.92,16.78655402]
[1730827013732,23.776884,168.95,168.93,16.78655402]
[1730827015004,23.776884,168.93,168.91,16.78655402]
[1730827015600,22.70505402,168.96,168.91,16.78655402]
[1730827015800,23.776884,168.95,168.92,16.78655402]
[1730827016030,23.776884,168.95,168.88,16.78655402]
[1730827016216,23.776884,168.93,168.9,16.78655402]
[1730827016605,23.776884,168.93,168.91,16.78655402]
[1730827016807,42.70475402,168.97,168.92,16.78655402]
[1730827017006,23.776884,168.96,168.92,16.78655402]
[1730827018606,46.48213802,168.96,168.91,16.78655402]
[1730827019506,46.48213802,168.96,168.9,16.78655402]
[1730827020132,46.48213802,168.96,168.91,16.78655402]
[1730827021432,70.0,168.98,168.89,5.9206]
[1730827021433,5.9182,168.97,168.93,16.78655402]
[1730827021641,23.776884,168.96,168.94,16.78655402]
[1730827022357,5.9179,168.98,168.94,16.78655402]
[1730827022709,23.776884,168.97,168.94,16.78655402]
[1730827023433,5.9182,168.97,168.93,16.78655402]
[1730827024215,23.776884,168.98,168.93,16.78655402]
[1730827024402,46.48143802,168.98,168.92,16.78655402]
[1730827024609,46.48143802,168.98,168.93,16.78655402]
[1730827024804,29.694884,168.98,168.93,16.78655402]
[1730827025133,46.48143802,168.98,168.92,16.78655402]
[1730827025728,29.694884,168.98,168.93,16.78655402]
[1730827025932,16.78655402,169.02,168.96,16.78655402]
[1730827026141,86.78655402,169.03,168.98,16.78655402]
[1730827026347,101.57485402,169.06,169.0,16.78655402]
[1730827026531,84.7883,169.06,169.01,16.78655402]
[1730827027045,101.57485402,169.06,169.0,16.78655402]
[1730827027241,29.6728,169.08,168.96,16.78655402]
[1730827027242,5.9143,169.08,169.03,16.78655402]
[1730827028623,23.776884,169.07,169.03,16.78655402]
[1730827029854,23.776884,169.05,169.03,16.78655402]
[1730827030240,23.776884,169.05,169.04,16.78655402]
[1730827030741,16.78655402,169.11,169.04,16.78655402]
[1730827030956,5.9133,169.11,169.07,16.78655402]
[1730827031316,5.9129,169.12,169.07,16.78655402]
[1730827031747,5.9126,169.13,169.09,16.78655402]
[1730827032120,16.78655402,169.11,169.05,32.44655402]
[1730827032330,16.78655402,169.1,169.05,15.66]
[1730827032550,16.78655402,169.08,169.03,16.78655402]
[1730827032842,16.78655402,169.08,169.01,21.7103]
[1730827032843,16.78655402,169.07,169.02,16.78655402]
[1730827033145,23.776884,169.09,169.05,16.78655402]
[1730827033348,23.776884,169.07,169.05,16.78655402]
[1730827033545,23.776884,169.07,169.04,16.78655402]
[1730827033752,23.776884,169.07,169.02,16.78655402]
[1730827034249,23.776884,169.07,169.03,16.78655402]
[1730827034435,23.776884,169.07,169.02,16.78655402]
[1730827034927,23.776884,169.05,169.02,16.78655402]
[1730827035829,23.776884,169.05,169.03,16.78655402]
[1730827036759,23.776884,169.05,169.02,16.78655402]
[1730827037050,29.691884,169.06,169.03,16.78655402]
[1730827039849,29.691884,169.06,169.04,16.78655402]
[1730827040355,29.691884,169.06,169.03,16.78655402]
[1730827040733,29.691884,169.06,169.02,16.78655402]
[1730827043940,29.691884,169.06,169.03,16.78655402]
[1730827044136,5.9129,169.12,169.05,16.78655402]
[1730827044366,5.9129,169.12,169.01,36.0392]
[1730827044367,5.9129,169.12,169.08,16.78655402]
[1730827045166,5.9129,169.12,169.07,16.78655402]
[1730827045866,23.776884,169.11,169.07,16.78655402]
[1730827046069,40.56343802,169.09,169.04,16.78655402]
[1730827046251,23.776884,169.09,169.05,16.78655402]
[1730827046565,16.78655402,169.08,169.02,16.78655402]
[1730827046742,93.776884,169.09,168.99,23.20035402]
[1730827046743,40.56343802,169.05,168.99,23.20035402]
[1730827047054,23.776884,169.03,168.98,16.78655402]
[1730827047639,23.776884,169.01,168.98,16.78655402]
[1730827047868,23.776884,169.01,168.99,16.78655402]
[1730827048840,23.776884,169.01,168.98,16.78655402]
[1730827049547,16.78655402,169.0,168.95,16.78655402]
[1730827049754,29.694384,168.99,168.95,16.78655402]
[1730827050168,23.776884,168.99,168.97,16.78655402]
[1730827050462,40.56343802,169.0,168.95,16.78655402]
[1730827050661,40.56343802,169.0,168.94,16.78655402]
[1730827051665,23.776884,168.98,168.94,16.78655402]
[1730827051852,23.776884,168.98,168.95,16.78655402]
[1730827052241,23.776884,168.95,168.89,15.4392]
[1730827052442,40.56343802,168.95,168.9,3.50451905]
[1730827052669,40.56343802,168.95,168.89,32.22575402]
[1730827052842,23.776884,168.93,168.89,32.22575402]
[1730827053039,23.776884,168.93,168.89,16.78655402]
[1730827053467,23.776884,168.94,168.89,16.78655402]
[1730827053651,29.696484,168.93,168.88,16.78655402]
[1730827054050,29.696484,168.93,168.89,3.49639757]
[1730827054452,29.696484,168.93,168.88,16.78655402]
[1730827054957,46.48303802,168.93,168.87,17.09678722]
[1730827055347,116.48303802,168.93,168.87,17.09678722]
[1730827056361,23.776884,168.91,168.87,0.3102332]
[1730827056583,40.56343802,168.91,168.87,3.81027061]
[1730827056780,23.776884,168.91,168.87,20.59682463]
[1730827056965,23.776884,168.91,168.87,17.09678722]
[1730827057171,23.776884,168.92,168.87,17.09678722]
[1730827057681,23.776884,168.9,168.87,17.09678722]
[1730827057986,23.776884,168.9,168.87,0.3102332]
[1730827058391,23.776884,168.9,168.87,17.09678722]
[1730827058686,23.776884,168.9,168.87,0.3102332]
[1730827059683,23.776884,168.91,168.87,0.3102332]
[1730827059901,29.697184,168.91,168.87,0.3102332]
[1730827060969,116.48373802,168.91,168.87,0.3102332]
[1730827062174,29.697184,168.91,168.87,17.09678722]
[1730827062574,29.697184,168.91,168.89,16.78655402]
[1730827062893,29.696984,168.92,168.89,16.78655402]
[1730827063193,29.696984,168.92,168.87,17.09678722]
[1730827063490,46.48353802,168.92,168.87,17.09678722]
[1730827064886,29.696984,168.92,168.87,17.09678722]
[1730827065773,46.48353802,168.92,168.87,17.09678722]
[1730827066174,29.696984,168.92,168.87,17.09678722]
[1730827066370,23.776884,168.92,168.88,16.78655402]
[1730827066581,23.776884,168.92,168.9,16.78655402]
[1730827067690,23.776884,168.92,168.91,16.78655402]
[1730827068195,5.9193,168.94,168.89,16.78655402]
[1730827068388,16.78655402,168.93,168.88,16.78655402]
[1730827068587,75.9193,168.94,168.89,16.78655402]
[1730827069193,5.9193,168.94,168.9,16.78655402]
[1730827069389,23.776884,168.93,168.92,16.78655402]
[1730827069566,5.9185,168.96,168.92,16.78655402]
[1730827069767,5.9182,168.97,168.92,16.78655402]
[1730827071002,23.776884,168.94,168.91,16.78655402]
[1730827071995,29.695784,168.95,168.91,16.78655402]
[1730827072378,29.695784,168.95,168.92,16.78655402]
[1730827072999,23.776884,168.95,168.92,16.78655402]
[1730827073202,23.776884,168.95,168.93,16.78655402]
[1730827073370,23.776884,168.95,168.92,16.78655402]
[1730827073984,29.695784,168.95,168.92,16.78655402]
[1730827074779,29.695784,168.95,168.91,16.78655402]
[1730827076081,29.695784,168.95,168.9,5.9206]
[1730827076082,29.695784,168.95,168.9,16.78655402]
[1730827076684,23.776884,168.93,168.89,16.78655402]
[1730827077607,23.776884,168.94,168.89,16.78655402]
[1730827077795,29.696384,168.94,168.89,16.78655402]
[1730827078695,46.48293802,168.94,168.88,5.9213]
[1730827078897,46.48293802,168.94,168.88,22.70785402]
[1730827079099,29.696384,168.94,168.89,16.78655402]
[1730827079297,23.776884,168.94,168.92,16.78655402]
[1730827079604,23.776884,168.94,168.93,16.78655402]
[1730827080514,23.776884,168.95,168.92,16.78655402]
[1730827080808,23.776884,168.95,168.91,16.78655402]
[1730827080977,23.776884,168.95,168.92,16.78655402]
[1730827081181,23.776884,168.95,168.88,37.51085402]
[1730827081182,23.26065402,169.01,168.94,16.78655402]
[1730827081381,5.9161,169.03,168.98,16.78655402]
[1730827081781,22.70265402,169.03,168.97,16.78655402]
[1730827081982,16.78655402,169.02,168.96,16.78655402]
[1730827082429,5.9168,169.01,168.96,16.78655402]
[1730827082592,23.776884,169.0,168.96,16.78655402]
[1730827082788,16.78655402,168.99,168.93,31.58555402]
[1730827082981,16.78655402,168.98,168.92,32.53095402]
[1730827083189,40.56343802,168.97,168.92,16.78655402]
[1730827083897,40.56343802,168.98,168.92,16.78655402]
[1730827084098,40.56343802,168.96,168.91,16.78655402]
[1730827084298,16.78655402,168.95,168.89,31.58865402]
[1730827084510,46.48263802,168.94,168.88,32.53095402]
[1730827084883,46.48263802,168.94,168.88,15.7444]
[1730827085111,29.696084,168.94,168.89,16.78655402]
[1730827085410,46.48263802,168.94,168.89,16.78655402]
[1730827086108,29.696084,168.94,168.89,16.78655402]
[1730827086624,110.56343802,168.9,168.87,0.3102332]
[1730827087034,16.78655402,168.89,168.87,0.3102332]
[1730827087202,23.776884,168.88,168.87,0.3102332]
[1730827087819,29.698184,168.88,168.87,0.3102332]
[1730827088730,23.776884,168.88,168.87,0.3102332]
[1730827089026,23.776884,168.88,168.87,17.09678722]
[1730827089198,5.9199,168.93,168.87,17.09678722]
[1730827089403,70.0,168.97,168.91,16.78655402]
[1730827089604,92.70485402,168.97,168.91,16.78655402]
[1730827089828,16.78655402,168.96,168.9,16.78655402]
[1730827090028,86.78655402,168.97,168.91,16.78655402]
[1730827090211,5.9185,168.96,168.91,16.78655402]
[1730827090606,23.776884,168.95,168.9,16.78655402]
[1730827091919,29.695984,168.95,168.9,16.78655402]
[1730827092124,23.776884,168.93,168.88,16.78655402]
[1730827092927,23.776884,168.93,168.89,16.78655402]
[1730827094233,29.696684,168.93,168.89,16.78655402]
[1730827094734,70.0,168.98,168.92,16.78655402]
[1730827095029,22.70475402,168.97,168.91,16.78655402]
[1730827095225,16.78655402,168.96,168.9,16.78655402]
[1730827095624,16.78655402,168.96,168.87,21.0361332]
[1730827095825,16.78655402,168.96,168.91,16.78655402]
[1730827096023,23.776884,168.95,168.91,16.78655402]
[1730827096220,29.695784,168.95,168.91,16.78655402]
[1730827097230,23.776884,168.96,168.93,16.78655402]
[1730827097536,23.776884,168.96,168.94,16.78655402]
[1730827098341,0.03,169.0,168.95,16.78655402]
[1730827098507,5.9178,168.99,168.96,16.78655402]
[1730827098707,5.9178,168.99,168.95,16.78655402]
[1730827100133,43.806884,169.0,168.95,16.78655402]
[1730827100335,49.724084,169.0,168.95,16.78655402]
[1730827100725,29.724084,169.0,168.96,16.78655402]
[1730827100923,29.724084,169.0,168.97,16.78655402]
[1730827101333,29.724084,169.0,168.96,16.78655402]
[1730827102247,46.51063802,169.0,168.94,16.78655402]
[1730827102939,46.51063802,169.0,168.95,16.78655402]
[1730827103133,46.51063802,169.0,168.94,16.78655402]
[1730827103935,16.78655402,168.99,168.94,16.78655402]
[1730827104134,23.776884,168.97,168.94,16.78655402]
[1730827105837,23.776884,168.97,168.95,16.78655402]
[1730827106440,5.9472,169.0,168.96,16.78655402]
[1730827106623,23.776884,168.99,168.97,16.78655402]
[1730827106819,23.776884,168.99,168.98,16.78655402]
[1730827107030,0.03,169.0,168.98,16.78655402]
[1730827107235,0.03,169.0,168.99,16.78655402]
[1730827107535,0.03,169.0,168.98,16.78655402]
[1730827107727,0.03,169.0,168.99,16.78655402]
[1730827111843,5.914,169.09,169.0,20.7099]
[1730827112051,5.914,169.09,169.06,16.78655402]
[1730827112544,70.0,169.11,169.06,16.78655402]
[1730827112545,75.9135,169.11,169.06,16.78655402]
[1730827112843,20.0,169.1,169.06,16.78655402]
[1730827113520,5.914,169.09,169.06,16.78655402]
[1730827113838,23.776884,169.08,169.06,16.78655402]
[1730827114219,23.776884,169.09,169.06,16.78655402]
[1730827115029,25.9137,169.1,169.06,16.78655402]
[1730827116253,23.776884,169.09,169.05,16.78655402]
[1730827116649,23.776884,169.09,169.0,14.7928]
[1730827116650,23.776884,169.09,169.04,16.78655402]
[1730827116854,23.776884,169.09,169.05,16.78655402]
[1730827117148,29.690984,169.09,169.05,16.78655402]
[1730827118555,110.56343802,169.07,169.01,16.78655402]
[1730827118744,23.776884,169.05,169.02,16.78655402]
[1730827118929,5.9141,169.09,169.04,16.78655402]
[1730827119135,23.776884,169.08,169.05,16.78655402]
[1730827119335,23.776884,169.08,168.98,21.6082]
[1730827119637,23.776884,169.08,169.04,16.78655402]
[1730827120159,29.691384,169.08,169.04,16.78655402]
[1730827120460,29.691384,169.08,169.03,16.78655402]
[1730827120754,23.776884,169.06,169.01,16.78655402]
[1730827121451,40.56343802,169.06,169.01,16.78655402]
[1730827121663,23.776884,169.06,169.01,16.78655402]
[1730827122152,23.776884,169.06,169.02,16.78655402]
[1730827122153,29.692184,169.06,169.02,16.78655402]
[1730827123254,46.47873802,169.06,169.01,16.78655402]
[1730827123661,29.692184,169.06,169.01,16.78655402]
[1730827123840,29.692184,169.06,169.03,16.78655402]
[1730827124354,23.776884,169.07,169.04,16.78655402]
[1730827124546,23.776884,169.07,169.05,16.78655402]
[1730827124730,5.9146,169.08,169.05,16.78655402]
[1730827125360,86.78655402,169.11,169.05,16.78655402]
[1730827125669,5.9138,169.1,169.06,16.78655402]
[1730827126959,23.776884,169.09,169.06,16.78655402]
[1730827130654,29.690484,169.1,169.05,16.78655402]
[1730827130964,29.690484,169.1,169.06,16.78655402]
[1730827132374,29.690484,169.1,169.02,6.5979]
[1730827132541,29.690484,169.1,169.05,16.78655402]
[1730827132959,29.690484,169.1,169.06,16.78655402]
[1730827133552,29.690484,169.1,169.07,16.78655402]
[1730827134066,29.690484,169.1,169.08,16.78655402]
[1730827134568,29.690484,169.1,169.07,16.78655402]
[1730827134746,23.776884,169.1,169.08,16.78655402]
[1730827135071,23.776884,169.1,169.07,16.78655402]
[1730827135241,29.690584,169.1,169.07,16.78655402]
[1730827135443,29.690584,169.1,169.06,16.78655402]
[1730827136081,46.47713802,169.1,169.05,16.78655402]
[1730827136264,116.47713802,169.1,169.04,16.78655402]
[1730827136650,116.47713802,169.1,169.05,16.78655402]
[1730827137152,116.47713802,169.1,169.08,16.78655402]
[1730827137153,23.776884,169.1,169.08,16.78655402]
[1730827137473,42.69915402,169.13,169.07,16.78655402]
[1730827137668,16.78655402,169.12,169.06,16.78655402]
[1730827138165,42.69915402,169.13,169.07,16.78655402]
[1730827138776,23.776884,169.1,169.07,16.78655402]
[1730827140869,23.776884,169.1,169.06,16.78655402]
[1730827141455,46.47673802,169.11,169.06,16.78655402]
[1730827142564,23.776884,169.09,169.04,16.78655402]
[1730827142771,23.776884,169.09,169.05,16.78655402]
[1730827142954,23.776884,169.1,169.06,16.78655402]
[1730827143153,23.776884,169.1,169.07,16.78655402]
[1730827143984,23.776884,169.1,169.05,16.78655402]
[1730827144578,23.776884,169.11,169.07,16.78655402]
[1730827145956,5.9129,169.12,169.09,16.78655402]
[1730827146291,5.9129,169.12,169.07,16.78655402]
[1730827146462,5.9129,169.12,169.06,33.38735402]
[1730827146463,22.69945402,169.12,169.06,33.38735402]
[1730827146776,15.78655402,169.11,169.05,16.78655402]
[1730827146978,22.69945402,169.12,169.06,16.78655402]
[1730827147278,23.776884,169.11,169.07,16.78655402]
[1730827147461,23.776884,169.11,169.08,16.78655402]
[1730827147778,29.690284,169.11,169.07,16.78655402]
[1730827147951,16.78655402,169.1,169.02,29.1148]
[1730827148157,23.776884,169.08,169.03,16.78655402]
[1730827148572,23.776884,169.09,169.04,16.78655402]
[1730827149557,29.691084,169.09,169.04,10.75910262]
[1730827150467,29.691084,169.09,169.03,3.38112118]
[1730827150665,110.45018662,169.09,169.03,14.1402238]
[1730827150984,99.691084,169.09,169.04,10.75910262]
[1730827151182,23.776884,169.09,169.06,10.75910262]
[1730827151393,23.776884,169.09,169.07,10.75910262]
[1730827151561,23.776884,169.09,169.03,24.08732118]
[1730827151562,16.67130262,169.14,169.08,10.75910262]
[1730827151973,70.0,169.13,169.08,10.75910262]
[1730827152178,16.67130262,169.14,169.08,10.75910262]
[1730827152686,23.776884,169.12,169.08,10.75910262]
[1730827153464,23.776884,169.13,169.08,10.75910262]
[1730827153784,23.776884,169.11,169.08,10.75910262]
[1730827154975,29.689784,169.12,169.08,10.75910262]
[1730827157389,86.1488,169.15,169.09,10.75910262]
[1730827157568,0.3102332,169.16,169.12,10.75910262]
[1730827157775,16.67100262,169.15,169.09,10.75910262]
[1730827158476,5.9119,169.15,169.1,10.75910262]
[1730827158693,10.75910262,169.13,169.07,10.75910262]
[1730827158891,40.44888662,169.12,169.06,25.54650262]
[1730827159076,40.44888662,169.12,169.08,10.75910262]
[1730827159077,23.776884,169.12,169.08,10.75910262]
[1730827159285,23.776884,169.12,169.07,10.75910262]
[1730827159900,23.776884,169.12,169.08,10.75910262]
[1730827160297,23.776884,169.12,169.07,10.75910262]
[1730827160794,23.776884,169.1,169.06,10.75910262]
[1730827160995,23.776884,169.1,169.05,10.75910262]
[1730827161375,23.776884,169.1,169.06,10.75910262]
[1730827161993,29.690184,169.11,169.06,10.75910262]
[1730827163799,40.44928662,169.11,169.05,10.75910262]
[1730827164979,29.690184,169.11,169.06,10.75910262]
[1730827165686,99.690184,169.11,169.05,10.75910262]
[1730827167794,99.690184,169.11,169.06,10.75910262]
[1730827168701,99.690184,169.11,169.07,10.75910262]
[1730827168887,5.9133,169.11,169.09,10.75910262]
[1730827169080,5.9133,169.11,169.04,63.74131048]
[1730827169081,70.0,169.12,169.04,20.7049]
[1730827169292,80.75910262,169.12,169.05,10.75910262]
[1730827169498,5.9133,169.11,169.05,10.75910262]
[1730827169675,5.9133,169.11,169.04,20.7049]
[1730827169876,5.9133,169.11,169.05,10.75910262]
[1730827170284,23.776884,169.1,169.05,10.75910262]
[1730827170478,23.776884,169.1,169.02,16.6008]
[1730827170680,104.53598662,169.1,169.04,10.75910262]
[1730827171190,104.53598662,169.1,169.03,10.75910262]
[1730827171778,23.776884,169.08,169.03,10.75910262]
[1730827171977,23.776884,169.08,169.04,10.75910262]
[1730827172301,23.776884,169.08,168.98,15.0284]
[1730827172302,104.53598662,169.05,168.98,15.0284]
[1730827172485,23.776884,169.02,168.97,10.75910262]
[1730827172888,23.776884,169.02,168.94,21.2876]
[1730827172889,23.776884,169.02,168.94,15.3686]
[1730827173100,23.776884,169.02,168.97,10.75910262]
[1730827173606,23.776884,169.02,168.99,10.75910262]
[1730827173801,29.693484,169.02,168.98,10.75910262]
[1730827174101,40.45258662,169.02,168.97,10.75910262]
[1730827174485,40.45258662,169.02,168.96,10.75910262]
[1730827174702,23.776884,169.0,168.95,10.75910262]
[1730827175310,23.776884,169.0,168.96,16.82840179]
[1730827175511,23.776884,169.0,168.97,16.82840179]
[1730827175681,29.694184,169.0,168.97,16.82840179]
[1730827176913,29.694184,169.0,168.96,16.82840179]
[1730827177211,23.776884,169.0,168.95,5.9188]
[1730827177419,23.776884,169.0,168.99,16.82840179]
[1730827179090,85.6773,169.05,168.99,16.82840179]
[1730827179290,5.915,169.06,169.03,16.82840179]
[1730827179589,5.9143,169.08,169.04,16.82840179]
[1730827180917,5.9143,169.08,169.06,16.82840179]
[1730827181300,5.9143,169.08,169.05,16.82840179]
[1730827181514,5.9143,169.08,169.04,16.82840179]
[1730827181898,5.9143,169.08,169.03,16.82840179]
[1730827181899,22.74270179,169.08,169.03,16.82840179]
[1730827182094,22.74270179,169.08,169.02,16.82840179]
[1730827182521,22.74270179,169.08,169.03,16.82840179]
[1730827183018,23.776884,169.07,169.03,16.82840179]
[1730827184425,23.776884,169.05,169.03,16.82840179]
[1730827186614,29.692284,169.05,169.04,16.82840179]
[1730827187900,23.776884,169.05,169.04,16.82840179]
[1730827189827,29.692284,169.05,169.03,16.82840179]
[1730827191137,29.692284,169.05,169.01,16.82840179]
[1730827193720,29.692284,169.05,169.0,16.82840179]
[1730827194139,23.776884,169.02,168.98,31.91770179]
[1730827194336,23.776884,169.02,168.99,16.82840179]
[1730827194518,23.776884,169.04,169.01,16.82840179]
[1730827194843,14.7859,169.08,169.03,16.82840179]
[1730827194844,5.9143,169.08,169.03,16.82840179]
[1730827195143,5.9143,169.08,168.96,0.1]
[1730827195318,5.9143,169.08,169.03,16.82840179]
[1730827196019,23.776884,169.07,169.02,10.76102127]
[1730827197439,23.776884,169.05,169.02,10.76102127]
[1730827197642,23.776884,169.05,169.03,10.76102127]
[1730827197829,23.776884,169.05,169.04,10.76102127]
[1730827200147,5.915,169.06,169.04,10.76102127]
[1730827200649,5.9136,169.1,169.05,10.76102127]
[1730827200815,5.9136,169.1,169.08,10.76102127]
[1730827201212,75.9136,169.1,169.01,26.7096]
[1730827201441,10.76102127,169.09,169.04,10.76102127]
[1730827201739,10.76102127,169.09,169.03,10.76102127]
[1730827201928,10.76102127,169.09,169.04,10.76102127]
[1730827202127,10.76102127,169.09,169.03,10.76102127]
[1730827202323,34.53790527,169.09,169.04,10.76102127]
[1730827202536,23.776884,169.09,169.04,10.76102127]
[1730827202737,23.776884,169.07,169.04,10.76102127]
[1730827202934,23.776884,169.07,169.01,26.7096]
[1730827202935,23.776884,169.07,169.03,10.76102127]
[1730827203448,23.776884,169.07,169.04,10.76102127]
[1730827204135,29.691184,169.08,169.04,10.76102127]
[1730827204542,29.691184,169.08,169.03,10.76102127]
[1730827204741,40.45220527,169.08,169.03,10.76102127]
[1730827205647,23.776884,169.06,169.0,15.3765]
[1730827205858,23.776884,169.06,169.01,10.76102127]
[1730827205859,93.776884,169.06,169.01,10.76102127]
[1730827206026,23.776884,169.06,169.02,10.76102127]
[1730827206228,23.776884,169.07,169.02,10.76102127]
[1730827206429,23.776884,169.07,169.03,10.76102127]
[1730827206646,23.776884,169.07,169.04,10.76102127]
[1730827206839,23.776884,169.07,169.05,10.76102127]
[1730827208038,29.691584,169.07,169.04,10.76102127]
[1730827208337,29.691584,169.07,169.03,10.76102127]
[1730827208828,29.691584,169.07,169.01,5.9164]
[1730827209028,23.776884,169.05,169.01,10.76102127]
[1730827209351,34.53790527,169.05,168.99,10.76102127]
[1730827209737,23.776884,169.05,169.01,10.76102127]
[1730827209943,29.692284,169.05,169.01,10.76102127]
[1730827211353,40.45330527,169.05,168.99,10.76102127]
[1730827211533,23.776884,169.0,168.96,10.76102127]
[1730827212353,20.7039,169.05,168.94,15.9694]
[1730827212354,5.9154,169.05,168.94,15.9694]
[1730827212531,76.2884,169.09,169.03,10.76102127]
[1730827212730,10.76102127,169.08,168.97,0.1]
[1730827212931,10.76102127,169.08,169.02,10.76102127]
[1730827213154,10.76102127,169.07,169.01,10.76102127]
[1730827213353,10.76102127,169.08,169.02,10.76102127]
[1730827213561,5.9147,169.07,169.02,10.76102127]
[1730827213850,23.776884,169.04,169.0,10.76102127]
[1730827214639,23.776884,169.04,168.95,40.7156]
[1730827214845,23.776884,169.02,168.98,10.76102127]
[1730827215344,23.776884,169.02,168.95,20.7156]
[1730827215658,23.776884,169.02,168.98,10.76102127]
[1730827215844,29.693484,169.02,168.97,10.76102127]
[1730827216032,29.693484,169.02,168.95,20.7156]
[1730827216033,10.76102127,169.01,168.94,15.8694]
[1730827216234,23.776884,169.0,168.95,10.76102127]
[1730827216455,23.776884,168.98,168.93,10.76102127]
[1730827216650,34.53790527,168.95,168.9,16.136]
[1730827216833,34.53790527,168.95,168.9,10.76102127]
[1730827217030,23.776884,168.95,168.91,10.76102127]
[1730827217337,23.776884,168.95,168.92,16.83652764]
[1730827217549,23.776884,168.98,168.94,16.83652764]
[1730827217755,23.776884,168.98,168.95,16.83652764]